[Event "Schack-SM 2024: Mastarklassen"]
[Site "Fortnox Arena, Hejaregatan 5, Vaxjo, Sweden"]
[Date "2024.07.01"]
[Round "3.9"]
[White "Karlsson, Stefan 2005"]
[Black "Joensson, Jacob"]
[Result "0-1"]
[TimeControl "90 minutes for 40 moves + 30 minutes for the rest of the game + 30 seconds per move from move one."]
[WhiteElo "2072"]
[BlackElo "2068"]

1. e4 {[%clk 01:30:55]} e5 {[%clk 01:30:56]} {[%emt 00:00:04]} 2. Nf3 {[%clk
01:31:19]} {[%emt 00:00:04]} Nc6 {[%clk 01:31:23]} {[%emt 00:00:05]} 3. Bb5
{[%clk 01:31:24]} {[%emt 00:00:25]} Nf6 {[%clk 01:31:47]} {[%emt 00:00:06]} 4.
d3 {[%clk 01:31:48]} {[%emt 00:00:05]} Bc5 {[%clk 01:32:14]} {[%emt 00:00:04]}
5. c3 {[%clk 01:32:11]} {[%emt 00:00:07]} O-O {[%clk 01:32:36]} {[%emt
00:00:08]} 6. O-O {[%clk 01:32:36]} {[%emt 00:00:04]} Re8 {[%clk 01:33:02]}
{[%emt 00:00:06]} 7. Re1 {[%clk 01:29:12]} {[%emt 00:03:53]} a6 {[%clk
01:31:44]} {[%emt 00:01:48]} 8. Ba4 {[%clk 01:28:11]} {[%emt 00:01:30]} Ba7
{[%clk 01:32:01]} {[%emt 00:00:14]} 9. Nbd2 {[%clk 01:27:32]} {[%emt 00:01:08]}
b5 {[%clk 01:32:01]} {[%emt 00:00:30]} 10. Bc2 {[%clk 01:26:17]} {[%emt
00:01:45]} d6 {[%clk 01:32:19]} {[%emt 00:00:13]} 11. h3 {[%clk 01:21:42]}
{[%emt 00:05:04]} Ne7 {[%clk 01:32:40]} {[%emt 00:00:09]} 12. d4 {[%clk
01:18:24]} {[%emt 00:03:48]} Ng6 {[%clk 01:33:04]} {[%emt 00:00:08]} 13. Nf1
{[%clk 01:18:01]} {[%emt 00:00:51]} Bb7 {[%clk 01:26:51]} {[%emt 00:06:45]} 14.
Ng3 {[%clk 01:17:34]} {[%emt 00:00:55]} h6 {[%clk 01:08:27]} {[%emt 00:18:55]}
15. a4 {[%clk 01:10:09]} {[%emt 00:07:55]} Bb6 {[%clk 01:01:47]} {[%emt
00:07:11]} 16. Qe2 {[%clk 01:01:40]} {[%emt 00:08:58]} Qd7 {[%clk 00:58:49]}
{[%emt 00:03:27]} 17. axb5 {[%clk 00:51:00]} {[%emt 00:11:10]} axb5 {[%clk
00:59:10]} {[%emt 00:00:09]} 18. Rxa8 {[%clk 00:51:25]} {[%emt 00:00:05]} Bxa8
{[%clk 00:57:28]} {[%emt 00:02:13]} 19. dxe5 {[%clk 00:48:31]} {[%emt
00:03:24]} Nxe5 {[%clk 00:54:26]} {[%emt 00:03:31]} 20. Nxe5 {[%clk 00:48:42]}
{[%emt 00:00:19]} Rxe5 {[%clk 00:54:49]} {[%emt 00:00:07]} 21. Kh2 {[%clk
00:43:59]} {[%emt 00:05:13]} Nxe4 {[%clk 00:47:28]} {[%emt 00:07:51]} 22. Nxe4
{[%clk 00:41:13]} {[%emt 00:03:17]} Bxe4 {[%clk 00:47:50]} {[%emt 00:00:08]} 23.
f4 {[%clk 00:26:17]} {[%emt 00:15:25]} Bf3 {[%clk 00:44:26]} {[%emt 00:03:55]}
24. Qf1 {[%clk 00:19:24]} {[%emt 00:07:23]} Rxe1 {[%clk 00:44:02]} {[%emt
00:00:54]} 25. Qxe1 {[%clk 00:19:52]} {[%emt 00:00:02]} Bd5 {[%clk 00:44:18]}
{[%emt 00:00:14]} 26. f5 {[%clk 00:19:20]} {[%emt 00:01:02]} f6 {[%clk
00:41:11]} {[%emt 00:03:37]} 27. Qd1 {[%clk 00:17:11]} {[%emt 00:02:38]} Bf7
{[%clk 00:37:06]} {[%emt 00:04:36]} 28. Bd3 {[%clk 00:16:36]} {[%emt 00:01:04]}
c5 {[%clk 00:32:52]} {[%emt 00:04:45]} 29. Qe2 {[%clk 00:15:26]} {[%emt
00:01:39]} c4 {[%clk 00:32:55]} {[%emt 00:00:27]} 30. Bc2 {[%clk 00:15:45]}
{[%emt 00:00:11]} d5 {[%clk 00:33:10]} {[%emt 00:00:16]} 31. Qg4 {[%clk
00:13:42]} {[%emt 00:02:32]} h5 {[%clk 00:33:23]} {[%emt 00:00:18]} 32. Qg3
{[%clk 00:13:10]} {[%emt 00:01:01]} d4 {[%clk 00:31:51]} {[%emt 00:02:02]} 33.
Qb8+ {[%clk 00:13:01]} {[%emt 00:00:39]} Bd8 {[%clk 00:31:09]} {[%emt
00:01:13]} 34. cxd4 {[%clk 00:13:19]} {[%emt 00:00:12]} Kh7 {[%clk 00:30:27]}
{[%emt 00:01:13]} 35. Kh1 {[%clk 00:13:31]} {[%emt 00:00:17]} Bc7 {[%clk
00:30:18]} {[%emt 00:00:38]} 36. Qf8 {[%clk 00:13:18]} {[%emt 00:00:44]} Bd5
{[%clk 00:29:24]} {[%emt 00:01:23]} 37. Qb4 {[%clk 00:13:14]} {[%emt 00:00:34]}
Qc6 {[%clk 00:29:31]} {[%emt 00:00:24]} 38. Qd2 {[%clk 00:13:27]} {[%emt
00:00:17]} Qd6 {[%clk 00:29:55]} {[%emt 00:00:06]} 0-1

[Event "Schack-SM 2024: Mastarklassen"]
[Site "Fortnox Arena, Hejaregatan 5, Vaxjo, Sweden"]
[Date "2024.07.01"]
[Round "3.10"]
[White "Karlsson, Jorgen"]
[Black "Landgren, Andreas"]
[Result "0-1"]
[TimeControl "90 minutes for 40 moves + 30 minutes for the rest of the game + 30 seconds per move from move one."]
[BlackTitle "FM"]
[WhiteElo "2020"]
[BlackElo "2243"]

1. g3 {[%clk 01:30:57]} d5 {[%clk 01:30:32]} {[%emt 00:00:26]} 2. Bg2 {[%clk
01:31:20]} {[%emt 00:00:06]} e5 {[%clk 01:30:12]} {[%emt 00:00:51]} 3. c4
{[%clk 01:31:23]} {[%emt 00:00:27]} d4 {[%clk 01:30:01]} {[%emt 00:00:41]} 4.
b4 {[%clk 01:31:23]} {[%emt 00:00:30]} a5 {[%clk 01:27:03]} {[%emt 00:03:29]} 5.
b5 {[%clk 01:31:12]} {[%emt 00:00:40]} c5 {[%clk 01:14:17]} {[%emt 00:13:17]} 6.
d3 {[%clk 01:29:34]} {[%emt 00:02:08]} h5 {[%clk 01:10:55]} {[%emt 00:03:51]} 7.
h4 {[%clk 01:29:42]} {[%emt 00:00:22]} Nf6 {[%clk 01:03:15]} {[%emt 00:08:10]}
8. Nd2 {[%clk 01:28:19]} {[%emt 00:01:52]} Be7 {[%clk 00:57:08]} {[%emt
00:06:38]} 9. Ngf3 {[%clk 01:27:35]} {[%emt 00:01:14]} Ng4 {[%clk 00:57:11]}
{[%emt 00:00:27]} 10. a4 {[%clk 01:26:35]} {[%emt 00:01:30]} f6 {[%clk
00:55:05]} {[%emt 00:02:36]} 11. Nb3 {[%clk 01:26:21]} {[%emt 00:00:44]} Be6
{[%clk 00:54:08]} {[%emt 00:01:26]} 12. Bd2 {[%clk 01:25:51]} {[%emt 00:01:00]}
Ra7 {[%clk 00:51:32]} {[%emt 00:03:07]} 13. Nxa5 {[%clk 01:21:34]} {[%emt
00:04:48]} Rxa5 {[%clk 00:51:27]} {[%emt 00:00:35]} 14. Bxa5 {[%clk 01:21:58]}
{[%emt 00:00:06]} Qxa5+ {[%clk 00:51:52]} {[%emt 00:00:04]} 15. Qd2 {[%clk
01:22:19]} {[%emt 00:00:09]} Bd8 {[%clk 00:51:07]} {[%emt 00:01:16]} 16. O-O
{[%clk 01:13:31]} {[%emt 00:09:17]} O-O {[%clk 00:48:29]} {[%emt 00:03:08]} 17.
Qc2 {[%clk 01:08:24]} {[%emt 00:05:37]} Qa7 {[%clk 00:41:16]} {[%emt 00:07:44]}
18. a5 {[%clk 01:08:04]} {[%emt 00:00:49]} Bxa5 {[%clk 00:40:39]} {[%emt
00:01:08]} 19. Nd2 {[%clk 01:08:22]} {[%emt 00:00:11]} Qb6 {[%clk 00:40:17]}
{[%emt 00:00:53]} 20. Nb3 {[%clk 01:08:30]} {[%emt 00:00:21]} Bc3 {[%clk
00:40:13]} {[%emt 00:00:34]} 21. Ra8 {[%clk 01:08:17]} {[%emt 00:00:43]} f5
{[%clk 00:33:47]} {[%emt 00:06:57]} 22. Qa2 {[%clk 01:06:11]} {[%emt 00:02:35]}
Nd7 {[%clk 00:24:50]} {[%emt 00:09:28]} 23. Qa7 {[%clk 01:00:45]} {[%emt
00:05:54]} Qxa7 {[%clk 00:21:08]} {[%emt 00:04:13]} 24. Rxa7 {[%clk 01:01:08]}
{[%emt 00:00:07]} b6 {[%clk 00:21:07]} {[%emt 00:00:31]} 25. Bc6 {[%clk
01:00:39]} {[%emt 00:00:58]} Ngf6 {[%clk 00:21:06]} {[%emt 00:00:31]} 26. f3
{[%clk 00:50:17]} {[%emt 00:10:52]} Rd8 {[%clk 00:18:38]} {[%emt 00:02:59]} 27.
Rc1 {[%clk 00:45:00]} {[%emt 00:05:47]} e4 {[%clk 00:13:44]} {[%emt 00:05:25]}
28. Bxd7 {[%clk 00:44:09]} {[%emt 00:01:20]} Nxd7 {[%clk 00:13:04]} {[%emt
00:01:10]} 29. f4 {[%clk 00:44:02]} {[%emt 00:00:37]} Kf8 {[%clk 00:10:21]}
{[%emt 00:03:14]} 30. Rc2 {[%clk 00:44:11]} {[%emt 00:00:20]} Ke7 {[%clk
00:08:46]} {[%emt 00:02:05]} 31. Rca2 {[%clk 00:44:18]} {[%emt 00:00:23]} Kd6
{[%clk 00:07:29]} {[%emt 00:01:47]} 32. Rb7 {[%clk 00:38:33]} {[%emt 00:06:15]}
e3 {[%clk 00:05:15]} {[%emt 00:02:45]} 33. Raa7 {[%clk 00:38:23]} {[%emt
00:00:40]} Bxc4 {[%clk 00:03:31]} {[%emt 00:02:14]} 34. Nxc5 {[%clk 00:31:13]}
{[%emt 00:07:39]} bxc5 {[%clk 00:03:00]} {[%emt 00:01:01]} 35. Ra6+ {[%clk
00:26:43]} {[%emt 00:05:00]} Ke7 {[%clk 00:03:18]} {[%emt 00:00:12]} 36. dxc4
{[%clk 00:23:51]} {[%emt 00:03:22]} d3 {[%clk 00:03:20]} {[%emt 00:00:28]} 0-1

[Event "Schack-SM 2024: Mastarklassen"]
[Site "Fortnox Arena, Hejaregatan 5, Vaxjo, Sweden"]
[Date "2024.07.01"]
[Round "3.11"]
[White "Lind, Jan-Olov"]
[Black "Willstedt, Lukas"]
[Result "1-0"]
[TimeControl "90 minutes for 40 moves + 30 minutes for the rest of the game + 30 seconds per move from move one."]
[WhiteElo "2135"]
[BlackElo "2082"]

1. e4 {[%clk 01:30:54]} {[%emt 00:00:02]} e6 {[%clk 01:30:56]} {[%emt
00:00:04]} 2. d3 {[%clk 01:31:17]} {[%emt 00:00:07]} d5 {[%clk 01:31:21]}
{[%emt 00:00:05]} 3. Nd2 {[%clk 01:31:42]} {[%emt 00:00:06]} Nf6 {[%clk
01:31:46]} {[%emt 00:00:04]} 4. Ngf3 {[%clk 01:32:04]} {[%emt 00:00:08]} Be7
{[%clk 01:32:04]} {[%emt 00:00:11]} 5. g3 {[%clk 01:32:18]} {[%emt 00:00:17]}
O-O {[%clk 01:32:24]} {[%emt 00:00:10]} 6. Bg2 {[%clk 01:32:43]} {[%emt
00:00:05]} a5 {[%clk 01:32:21]} {[%emt 00:00:33]} 7. O-O {[%clk 01:32:25]}
{[%emt 00:00:48]} a4 {[%clk 01:32:39]} {[%emt 00:00:13]} 8. a3 {[%clk
01:29:04]} {[%emt 00:03:51]} c5 {[%clk 01:28:06]} {[%emt 00:05:02]} 9. Re1
{[%clk 01:29:07]} {[%emt 00:00:27]} Nc6 {[%clk 01:28:25]} {[%emt 00:00:11]} 10.
e5 {[%clk 01:25:14]} {[%emt 00:04:23]} Nd7 {[%clk 01:28:41]} {[%emt 00:00:14]}
11. h4 {[%clk 01:25:21]} {[%emt 00:00:23]} Qc7 {[%clk 01:28:14]} {[%emt
00:00:56]} 12. Qe2 {[%clk 01:24:49]} {[%emt 00:01:03]} f6 {[%clk 01:22:00]}
{[%emt 00:06:43]} 13. exf6 {[%clk 01:23:23]} {[%emt 00:01:56]} Nxf6 {[%clk
01:22:22]} {[%emt 00:00:08]} 14. Bh3 {[%clk 01:19:06]} {[%emt 00:04:46]} Bd6
{[%clk 01:16:24]} {[%emt 00:06:30]} 15. Bxe6+ {[%clk 01:06:31]} {[%emt
00:13:05]} Bxe6 {[%clk 01:16:46]} {[%emt 00:00:08]} 16. Qxe6+ {[%clk 01:06:55]}
{[%emt 00:00:06]} Kh8 {[%clk 01:17:09]} {[%emt 00:00:08]} 17. Qh3 {[%clk
01:06:15]} {[%emt 00:01:08]} Nd4 {[%clk 01:13:53]} {[%emt 00:03:47]} 18. Nxd4
{[%clk 00:56:03]} {[%emt 00:10:42]} cxd4 {[%clk 01:13:41]} {[%emt 00:00:42]} 19.
Nf3 {[%clk 00:51:44]} {[%emt 00:04:48]} Qxc2 {[%clk 01:13:07]} {[%emt
00:01:05]} 20. Nxd4 {[%clk 00:49:29]} {[%emt 00:02:45]} Qxd3 {[%clk 01:11:28]}
{[%emt 00:02:09]} 21. Be3 {[%clk 00:48:11]} {[%emt 00:01:47]} Rae8 {[%clk
01:00:59]} {[%emt 00:11:00]} 22. Rad1 {[%clk 00:41:37]} {[%emt 00:07:04]} Qg6
{[%clk 00:54:50]} {[%emt 00:06:38]} 23. Qf5 {[%clk 00:35:33]} {[%emt 00:06:34]}
Ng4 {[%clk 00:51:54]} {[%emt 00:03:26]} 24. Qxg6 {[%clk 00:34:09]} {[%emt
00:01:55]} hxg6 {[%clk 00:52:22]} {[%emt 00:00:03]} 25. Bf4 {[%clk 00:26:13]}
{[%emt 00:08:24]} Rxe1+ {[%clk 00:48:03]} {[%emt 00:04:50]} 26. Rxe1 {[%clk
00:23:21]} {[%emt 00:03:21]} Bc5 {[%clk 00:37:48]} {[%emt 00:10:46]} 27. Rd1
{[%clk 00:23:30]} {[%emt 00:00:21]} Re8 {[%clk 00:37:47]} {[%emt 00:00:29]} 28.
Rd2 {[%clk 00:12:20]} {[%emt 00:11:41]} Re4 {[%clk 00:34:12]} {[%emt 00:04:06]}
29. Nf3 {[%clk 00:12:12]} {[%emt 00:00:37]} d4 {[%clk 00:29:09]} {[%emt
00:05:34]} 30. Kf1 {[%clk 00:10:13]} {[%emt 00:02:28]} Kg8 {[%clk 00:27:56]}
{[%emt 00:01:43]} 31. Re2 {[%clk 00:08:24]} {[%emt 00:02:19]} Rxe2 {[%clk
00:22:03]} {[%emt 00:06:25]} 32. Kxe2 {[%clk 00:08:48]} {[%emt 00:00:05]} Kf7
{[%clk 00:18:32]} {[%emt 00:04:00]} 33. Ng5+ {[%clk 00:07:36]} {[%emt
00:01:42]} Ke7 {[%clk 00:18:35]} {[%emt 00:00:25]} 34. Ne4 {[%clk 00:05:40]}
{[%emt 00:02:28]} d3+ {[%clk 00:15:52]} {[%emt 00:03:13]} 35. Kf3 {[%clk
00:05:33]} {[%emt 00:00:37]} Bd4 {[%clk 00:15:19]} {[%emt 00:01:03]} 36. Kxg4
{[%clk 00:04:19]} {[%emt 00:01:45]} Bxb2 {[%clk 00:15:40]} {[%emt 00:00:09]} 37.
Bd6+ {[%clk 00:04:31]} {[%emt 00:00:18]} Ke6 {[%clk 00:16:01]} {[%emt
00:00:08]} 38. Bb4 {[%clk 00:04:30]} {[%emt 00:00:32]} Kd5 {[%clk 00:15:51]}
{[%emt 00:00:40]} 39. Kf3 {[%clk 00:02:51]} {[%emt 00:02:09]} Bc1 {[%clk
00:14:43]} {[%emt 00:01:38]} 40. Nd2 {[%clk 00:01:14]} {[%emt 00:02:07]} Kd4
{[%clk 00:10:56]} {[%emt 00:04:16]} 41. g4 {[%clk 00:28:24]} {[%emt 00:03:20]}
b5 {[%clk 00:41:05]} {[%emt 00:00:22]} 42. h5 {[%clk 00:26:35]} {[%emt
00:02:19]} gxh5 {[%clk 00:41:27]} {[%emt 00:00:08]} 43. gxh5 {[%clk 00:26:59]}
{[%emt 00:00:05]} Bb2 {[%clk 00:41:51]} {[%emt 00:00:07]} 44. Ne4 {[%clk
00:26:39]} {[%emt 00:00:50]} Ba1 {[%clk 00:38:29]} {[%emt 00:03:50]} 45. Bf8
{[%clk 00:21:59]} {[%emt 00:05:11]} Kc4 {[%clk 00:38:31]} {[%emt 00:00:29]} 46.
Ke3 {[%clk 00:18:42]} {[%emt 00:03:47]} Bb2 {[%clk 00:35:52]} {[%emt 00:03:09]}
1-0

[Event "Schack-SM 2024: Mastarklassen"]
[Site "Fortnox Arena, Hejaregatan 5, Vaxjo, Sweden"]
[Date "2024.07.01"]
[Round "3.12"]
[White "Johnson, Daniel"]
[Black "Neretljak, Nedzad"]
[Result "1/2-1/2"]
[TimeControl "90 minutes for 40 moves + 30 minutes for the rest of the game + 30 seconds per move from move one."]
[BlackTitle "CM"]
[WhiteElo "2126"]
[BlackElo "2048"]

1. d4 {[%clk 01:29:57]} {[%emt 00:00:58]} Nf6 {[%clk 01:30:39]} {[%emt
00:00:21]} 2. Nc3 {[%clk 01:29:58]} {[%emt 00:00:30]} e6 {[%clk 01:30:08]}
{[%emt 00:01:01]} 3. Bf4 {[%clk 01:29:39]} {[%emt 00:00:49]} a6 {[%clk
01:30:03]} {[%emt 00:00:35]} 4. e3 {[%clk 01:25:43]} {[%emt 00:04:26]} Nc6
{[%clk 01:27:04]} {[%emt 00:03:29]} 5. g4 {[%clk 01:22:25]} {[%emt 00:03:47]}
Bb4 {[%clk 01:24:38]} {[%emt 00:02:56]} 6. Nge2 {[%clk 01:21:02]} {[%emt
00:01:53]} e5 {[%clk 01:18:37]} {[%emt 00:06:32]} 7. Bxe5 {[%clk 00:53:51]}
{[%emt 00:27:41]} Nxg4 {[%clk 01:16:37]} {[%emt 00:02:30]} 8. Bg3 {[%clk
00:51:08]} {[%emt 00:03:13]} O-O {[%clk 01:15:46]} {[%emt 00:01:21]} 9. a3
{[%clk 00:50:36]} {[%emt 00:01:01]} Ba5 {[%clk 01:15:55]} {[%emt 00:00:21]} 10.
b4 {[%clk 00:43:07]} {[%emt 00:08:00]} Bb6 {[%clk 01:16:20]} {[%emt 00:00:05]}
11. Nd5 {[%clk 00:43:32]} {[%emt 00:00:05]} Re8 {[%clk 01:15:37]} {[%emt
00:01:12]} 12. c4 {[%clk 00:34:24]} {[%emt 00:09:39]} d6 {[%clk 01:13:09]}
{[%emt 00:02:57]} 13. c5 {[%clk 00:33:30]} {[%emt 00:01:24]} Ba7 {[%clk
01:13:27]} {[%emt 00:00:11]} 14. Nec3 {[%clk 00:22:50]} {[%emt 00:11:11]} Ne7
{[%clk 01:10:01]} {[%emt 00:03:57]} 15. Nxe7+ {[%clk 00:20:02]} {[%emt
00:03:17]} Qxe7 {[%clk 01:10:18]} {[%emt 00:00:14]} 16. Qf3 {[%clk 00:14:44]}
{[%emt 00:05:48]} Bb8 {[%clk 01:02:02]} {[%emt 00:08:44]} 17. cxd6 {[%clk
00:12:08]} {[%emt 00:03:08]} cxd6 {[%clk 01:02:12]} {[%emt 00:00:19]} 18. Nd5
{[%clk 00:12:25]} {[%emt 00:00:13]} Qd8 {[%clk 01:01:57]} {[%emt 00:00:46]} 19.
Bg2 {[%clk 00:12:06]} {[%emt 00:00:48]} Nh6 {[%clk 00:58:14]} {[%emt 00:04:14]}
20. O-O {[%clk 00:09:02]} {[%emt 00:03:34]} Ra7 {[%clk 00:56:00]} {[%emt
00:02:44]} 21. Rac1 {[%clk 00:05:03]} {[%emt 00:04:28]} b5 {[%clk 00:55:07]}
{[%emt 00:01:23]} 22. Rfe1 {[%clk 00:03:53]} {[%emt 00:01:40]} Nf5 {[%clk
00:53:25]} {[%emt 00:02:13]} 23. Qf4 {[%clk 00:00:51]} {[%emt 00:03:32]} Be6
{[%clk 00:51:23]} {[%emt 00:02:32]} 24. Red1 {[%clk 00:00:49]} {[%emt
00:00:31]} h5 {[%clk 00:48:00]} {[%emt 00:03:53]} 25. e4 {[%clk 00:00:36]}
{[%emt 00:00:43]} Nxg3 {[%clk 00:41:58]} {[%emt 00:06:32]} 26. hxg3 {[%clk
00:00:54]} {[%emt 00:00:12]} Bxd5 {[%clk 00:41:47]} {[%emt 00:00:41]} 27. exd5
{[%clk 00:01:21]} {[%emt 00:00:04]} Rae7 {[%clk 00:40:39]} {[%emt 00:01:38]} 28.
Bf3 {[%clk 00:01:21]} {[%emt 00:00:29]} g6 {[%clk 00:40:24]} {[%emt 00:00:45]}
29. Kg2 {[%clk 00:00:53]} {[%emt 00:00:58]} Kg7 {[%clk 00:39:59]} {[%emt
00:00:55]} 30. Rc6 {[%clk 00:00:39]} {[%emt 00:00:44]} a5 {[%clk 00:37:51]}
{[%emt 00:02:40]} 31. Rh1 {[%clk 00:00:51]} {[%emt 00:00:16]} axb4 {[%clk
00:37:44]} {[%emt 00:00:39]} 32. axb4 {[%clk 00:01:17]} {[%emt 00:00:04]} Re1
{[%clk 00:37:48]} {[%emt 00:00:25]} 33. Rc1 {[%clk 00:00:32]} {[%emt 00:01:16]}
Rxc1 {[%clk 00:37:23]} {[%emt 00:00:54]} 34. Rxc1 {[%clk 00:00:47]} {[%emt
00:00:15]} Bc7 {[%clk 00:36:34]} {[%emt 00:01:19]} 35. Rh1 {[%clk 00:00:56]}
{[%emt 00:00:19]} Qe7 {[%clk 00:35:21]} {[%emt 00:01:44]} 36. g4 {[%clk
00:01:01]} {[%emt 00:00:25]} g5 {[%clk 00:35:36]} {[%emt 00:00:16]} 37. Qf5
{[%clk 00:01:00]} {[%emt 00:00:31]} h4 {[%clk 00:35:58]} {[%emt 00:00:07]} 38.
Rd1 {[%clk 00:00:31]} {[%emt 00:01:00]} Bd8 {[%clk 00:35:28]} {[%emt 00:00:59]}
39. Rc1 {[%clk 00:00:31]} {[%emt 00:00:30]} Bb6 {[%clk 00:31:11]} {[%emt
00:04:47]} 40. Rd1 {[%clk 00:00:31]} {[%emt 00:00:30]} Qf6 {[%clk 00:30:18]}
{[%emt 00:01:23]} 41. Qxf6+ {[%clk 00:19:47]} {[%emt 00:11:15]} Kxf6 {[%clk
01:00:40]} {[%emt 00:00:07]} 42. Rd2 {[%clk 00:17:25]} {[%emt 00:02:52]} Ra8
{[%clk 01:00:44]} {[%emt 00:00:26]} 43. Be2 {[%clk 00:16:01]} {[%emt 00:01:55]}
Ra4 {[%clk 01:00:36]} {[%emt 00:00:38]} 44. Bxb5 {[%clk 00:12:16]} {[%emt
00:04:16]} Rxb4 {[%clk 01:00:58]} {[%emt 00:00:07]} 45. Bd7 {[%clk 00:12:19]}
{[%emt 00:00:27]} Ke7 {[%clk 01:01:05]} {[%emt 00:00:23]} 46. Bf5 {[%clk
00:12:13]} {[%emt 00:00:36]} Bxd4 {[%clk 01:01:23]} {[%emt 00:00:12]} 47. Re2+
{[%clk 00:09:16]} {[%emt 00:03:27]} Be5 {[%clk 01:01:16]} {[%emt 00:00:36]} 48.
Re3 {[%clk 00:07:00]} {[%emt 00:02:45]} Kd8 {[%clk 01:00:39]} {[%emt 00:01:09]}
49. Ra3 {[%clk 00:03:57]} {[%emt 00:03:33]} Rb2 {[%clk 00:59:46]} {[%emt
00:01:21]} 50. Ra8+ {[%clk 00:03:56]} {[%emt 00:00:32]} Ke7 {[%clk 01:00:09]}
{[%emt 00:00:07]} 51. Ra3 {[%clk 00:03:56]} {[%emt 00:00:31]} Bd4 {[%clk
00:56:08]} {[%emt 00:04:30]} 52. Rf3 {[%clk 00:03:35]} {[%emt 00:00:51]} Kd8
{[%clk 00:52:44]} {[%emt 00:03:54]} 53. Bh7 {[%clk 00:02:59]} {[%emt 00:01:07]}
f6 {[%clk 00:53:00]} {[%emt 00:00:14]} 54. Bf5 {[%clk 00:02:12]} {[%emt
00:01:17]} Kc7 {[%clk 00:53:23]} {[%emt 00:00:06]} 55. Be6 {[%clk 00:02:36]}
{[%emt 00:00:07]} Kb6 {[%clk 00:53:43]} {[%emt 00:00:09]} 56. Bf5 {[%clk
00:01:34]} {[%emt 00:01:32]} Kc5 {[%clk 00:53:40]} {[%emt 00:00:34]} 57. Be6
{[%clk 00:01:59]} {[%emt 00:00:05]} Rd2 {[%clk 00:50:26]} {[%emt 00:03:43]} 58.
Kf1 {[%clk 00:01:22]} {[%emt 00:01:05]} Kc4 {[%clk 00:49:58]} {[%emt 00:01:00]}
59. Ke1 {[%clk 00:00:37]} {[%emt 00:01:15]} Bc3 {[%clk 00:49:49]} {[%emt
00:00:39]} 60. Kf1 {[%clk 00:00:58]} {[%emt 00:00:09]} Kb3 {[%clk 00:49:08]}
{[%emt 00:01:11]} 61. Kg2 {[%clk 00:00:44]} {[%emt 00:00:44]} Kb2 {[%clk
00:49:13]} {[%emt 00:00:26]} 62. Kf1 {[%clk 00:00:43]} {[%emt 00:00:31]} Bd4
{[%clk 00:49:03]} {[%emt 00:00:39]} 63. Bf5 {[%clk 00:00:40]} {[%emt 00:00:33]}
Kc1 {[%clk 00:48:27]} {[%emt 00:01:06]} 64. Kg2 {[%clk 00:00:35]} {[%emt
00:00:32]} Kd1 {[%clk 00:46:05]} {[%emt 00:02:55]} 65. Rd3 {[%clk 00:00:42]}
{[%emt 00:00:23]} Rxd3 {[%clk 00:44:47]} {[%emt 00:01:49]} 66. Bxd3 {[%clk
00:01:08]} {[%emt 00:00:04]} Ke1 {[%clk 00:41:05]} {[%emt 00:04:11]} 67. f3
{[%clk 00:01:18]} {[%emt 00:00:20]} Kd2 {[%clk 00:41:20]} {[%emt 00:00:15]} 68.
Bf5 {[%clk 00:01:39]} {[%emt 00:00:09]} Ke3 {[%clk 00:41:42]} {[%emt 00:00:09]}
69. Be4 {[%clk 00:01:50]} {[%emt 00:00:19]} Kf4 {[%clk 00:41:56]} {[%emt
00:00:16]} 70. Kh3 {[%clk 00:01:46]} {[%emt 00:00:33]} Be3 {[%clk 00:42:05]}
{[%emt 00:00:22]} 71. Kg2 {[%clk 00:01:55]} {[%emt 00:00:21]} Ke5 {[%clk
00:41:11]} {[%emt 00:01:23]} 72. Kh3 {[%clk 00:02:15]} {[%emt 00:00:10]} Bd4
{[%clk 00:41:05]} {[%emt 00:00:35]} 73. Kg2 {[%clk 00:01:53]} {[%emt 00:00:53]}
f5 {[%clk 00:41:18]} {[%emt 00:00:18]} 74. gxf5 {[%clk 00:01:49]} {[%emt
00:00:34]} Kf4 {[%clk 00:41:38]} {[%emt 00:00:10]} 75. Bc2 {[%clk 00:01:31]}
{[%emt 00:00:48]} Be5 {[%clk 00:40:48]} {[%emt 00:01:19]} 76. Bd1 {[%clk
00:00:47]} {[%emt 00:01:14]} Kxf5 {[%clk 00:41:06]} {[%emt 00:00:13]} 77. Ba4
{[%clk 00:00:36]} {[%emt 00:00:41]} Bf6 {[%clk 00:39:21]} {[%emt 00:02:15]} 78.
Bd7+ {[%clk 00:00:54]} {[%emt 00:00:12]} Ke5 {[%clk 00:39:42]} {[%emt
00:00:08]} 79. Be6 {[%clk 00:01:20]} {[%emt 00:00:04]} Kd4 {[%clk 00:40:01]}
{[%emt 00:00:11]} 80. Bf7 {[%clk 00:01:32]} {[%emt 00:00:18]} Bd8 {[%clk
00:40:05]} {[%emt 00:00:26]} 81. Bg8 {[%clk 00:01:51]} {[%emt 00:00:12]} Ke5
{[%clk 00:39:09]} {[%emt 00:01:25]} 82. Be6 {[%clk 00:02:06]} {[%emt 00:00:15]}
Be7 {[%clk 00:39:22]} {[%emt 00:00:17]} 83. Kh3 {[%clk 00:02:26]} {[%emt
00:00:10]} Kd4 {[%clk 00:39:07]} {[%emt 00:00:44]} 84. Kg2 {[%clk 00:02:46]}
{[%emt 00:00:11]} Ke3 {[%clk 00:39:30]} {[%emt 00:00:07]} 85. Bg4 {[%clk
00:03:08]} {[%emt 00:00:08]} Bf6 {[%clk 00:39:47]} {[%emt 00:00:13]} 86. Be6
{[%clk 00:02:29]} {[%emt 00:01:10]} Kf4 {[%clk 00:40:02]} {[%emt 00:00:15]} 87.
Bg4 {[%clk 00:02:51]} {[%emt 00:00:07]} 1/2-1/2